[Event "Early-Titled-Tuesday-Blitz-April-02-2024"]
[Site "Chess.com"]
[Date "2024.04.02"]
[Round "8"]
[White "lcmil"]
[Black "DeArron_Fox"]
[Result "0-1"]
[WhiteElo "2288"]
[BlackElo "2506"]
[TimeControl "180+1"]
[EndTime "9:28:58 PDT"]
[Termination "DeArron_Fox won by resignation"]

1. e4 {[%clk 0:03:00]} 1... c5 {[%clk 0:02:57.6]} 2. Nf3 {[%clk 0:02:58.4]} 2...
e6 {[%clk 0:02:57.1]} 3. d4 {[%clk 0:02:58.6]} 3... cxd4 {[%clk 0:02:58]} 4.
Nxd4 {[%clk 0:02:58.9]} 4... a6 {[%clk 0:02:58.6]} 5. Nc3 {[%clk 0:02:57.3]}
5... b5 {[%clk 0:02:59.2]} 6. Bd3 {[%clk 0:02:53.5]} 6... Bb7 {[%clk 0:02:59.7]}
7. O-O {[%clk 0:02:53.1]} 7... Nc6 {[%clk 0:03:00.3]} 8. Be3 {[%clk 0:02:52.3]}
8... Nf6 {[%clk 0:02:53.8]} 9. Qe2 {[%clk 0:02:47.6]} 9... Qc7 {[%clk
0:02:29.5]} 10. f4 {[%clk 0:02:43.3]} 10... Bc5 {[%clk 0:01:54.6]} 11. Nb3
{[%clk 0:02:23.8]} 11... Bxe3+ {[%clk 0:01:51.1]} 12. Qxe3 {[%clk 0:02:24.7]}
12... d6 {[%clk 0:01:23.2]} 13. Bxb5 {[%clk 0:02:06.4]} 13... axb5 {[%clk
0:01:05.1]} 14. Nxb5 {[%clk 0:02:07.3]} 14... Qd8 {[%clk 0:00:25.2]} 15. Rfd1
{[%clk 0:01:56.3]} 15... Ng4 {[%clk 0:00:18.4]} 16. Qe2 {[%clk 0:01:49.2]} 16...
Qb6+ {[%clk 0:00:16.8]} 17. Kf1 {[%clk 0:01:47.3]} 17... Ne3+ {[%clk 0:00:09.8]}
18. Ke1 {[%clk 0:01:45.9]} 18... Nxd1 {[%clk 0:00:07.4]} 19. Nxd6+ {[%clk
0:01:42.9]} 19... Ke7 {[%clk 0:00:07.7]} 20. Rxd1 {[%clk 0:01:42.3]} 20... Rhd8
{[%clk 0:00:04.8]} 21. e5 {[%clk 0:01:42]} 21... Qb4+ {[%clk 0:00:04.7]} 22. c3
{[%clk 0:01:34.5]} 22... Qxf4 {[%clk 0:00:04.5]} 23. Nxb7 {[%clk 0:01:34.2]}
23... Rxd1+ {[%clk 0:00:05.4]} 24. Qxd1 {[%clk 0:01:31.4]} 24... Qxe5+ {[%clk
0:00:03.8]} 25. Kf1 {[%clk 0:01:31.2]} 25... Qxh2 {[%clk 0:00:02.9]} 26. Qg4
{[%clk 0:00:48.3]} 26... Qc7 {[%clk 0:00:02.7]} 27. Qg5+ {[%clk 0:00:45.7]}
27... Kf8 {[%clk 0:00:02.4]} 28. Qc5+ {[%clk 0:00:45.2]} 28... Kg8 {[%clk
0:00:02.3]} 29. Nd6 {[%clk 0:00:45.7]} 29... Rd8 {[%clk 0:00:02.6]} 30. Nb5
{[%clk 0:00:45.1]} 30... Qd7 {[%clk 0:00:03.2]} 31. N5d4 {[%clk 0:00:44.7]}
31... Nxd4 {[%clk 0:00:03.8]} 32. cxd4 {[%clk 0:00:44.9]} 32... Qa4 {[%clk
0:00:02.7]} 33. Qc7 {[%clk 0:00:41.6]} 33... Rf8 {[%clk 0:00:02.5]} 34. Na5
{[%clk 0:00:39.7]} 34... Qxa2 {[%clk 0:00:02.6]} 35. Qc3 {[%clk 0:00:37.6]}
35... h6 {[%clk 0:00:02.9]} 36. b4 {[%clk 0:00:37.6]} 36... Qb1+ {[%clk
0:00:02.3]} 37. Kf2 {[%clk 0:00:37.4]} 37... Qf5+ {[%clk 0:00:03.2]} 38. Kg1
{[%clk 0:00:37.1]} 38... e5 {[%clk 0:00:03.4]} 39. dxe5 {[%clk 0:00:36.7]} 39...
Rc8 {[%clk 0:00:03.1]} 40. Nc6 {[%clk 0:00:36.2]} 40... Kh7 {[%clk 0:00:02.9]}
41. b5 {[%clk 0:00:34.8]} 41... Qb1+ {[%clk 0:00:03.5]} 42. Kh2 {[%clk
0:00:24.4]} 42... Qxb5 {[%clk 0:00:04]} 43. Qc2+ {[%clk 0:00:24.9]} 43... Kh8
{[%clk 0:00:04.1]} 44. Nd4 {[%clk 0:00:24.1]} 44... Rxc2 {[%clk 0:00:03.4]} 45.
Nxb5 {[%clk 0:00:24.6]} 45... Re2 {[%clk 0:00:04]} 46. Nd6 {[%clk 0:00:25.5]}
46... Kg8 {[%clk 0:00:03.7]} 47. Nc4 {[%clk 0:00:23.8]} 47... Re4 {[%clk
0:00:04.2]} 48. Nd6 {[%clk 0:00:23.2]} 48... Rxe5 {[%clk 0:00:04.4]} 49. Nb7
{[%clk 0:00:24.1]} 49... Rd5 {[%clk 0:00:04.1]} 50. Nd8 {[%clk 0:00:25]} 50...
Rxd8 {[%clk 0:00:03.9]} 0-1

[Event "Early-Titled-Tuesday-Blitz-April-02-2024"]
[Site "Chess.com"]
[Date "2024.04.02"]
[Round "8"]
[White "HanSchut"]
[Black "kleber2007"]
[Result "0-1"]
[WhiteElo "2262"]
[BlackElo "2461"]
[TimeControl "180+1"]
[EndTime "9:28:58 PDT"]
[Termination "kleber2007 won on time"]

1. e4 {[%clk 0:03:00.9]} 1... c6 {[%clk 0:01:48.6]} 2. d4 {[%clk 0:03:00.5]}
2... d5 {[%clk 0:01:47.6]} 3. e5 {[%clk 0:03:01.1]} 3... Bf5 {[%clk 0:01:47.2]}
4. h4 {[%clk 0:03:01.2]} 4... Qc7 {[%clk 0:01:46.9]} 5. c4 {[%clk 0:02:53.7]}
5... e6 {[%clk 0:01:44.1]} 6. Nc3 {[%clk 0:02:50]} 6... h6 {[%clk 0:01:35.5]} 7.
g4 {[%clk 0:02:25.1]} 7... Bh7 {[%clk 0:01:33.6]} 8. Nf3 {[%clk 0:02:22.8]} 8...
Ne7 {[%clk 0:01:31]} 9. cxd5 {[%clk 0:02:22.2]} 9... Nxd5 {[%clk 0:01:29.2]} 10.
Bd3 {[%clk 0:02:09.9]} 10... Bxd3 {[%clk 0:01:25.4]} 11. Qxd3 {[%clk 0:02:10.8]}
11... Nd7 {[%clk 0:01:24.9]} 12. h5 {[%clk 0:02:02.9]} 12... Bb4 {[%clk
0:01:21.8]} 13. g5 {[%clk 0:02:02.1]} 13... c5 {[%clk 0:01:09.7]} 14. a3 {[%clk
0:01:46.3]} 14... cxd4 {[%clk 0:00:59.5]} 15. axb4 {[%clk 0:01:41.3]} 15... dxc3
{[%clk 0:00:59.4]} 16. bxc3 {[%clk 0:01:21]} 16... Nxe5 {[%clk 0:00:58.7]} 17.
Nxe5 {[%clk 0:01:07.8]} 17... Qxe5+ {[%clk 0:00:58]} 18. Kf1 {[%clk 0:01:03.6]}
18... hxg5 {[%clk 0:00:54.7]} 19. Bb2 {[%clk 0:00:52.5]} 19... Nf4 {[%clk
0:00:44]} 20. Qf3 {[%clk 0:00:50.3]} 20... Qd5 {[%clk 0:00:21.9]} 21. Qxd5
{[%clk 0:00:35.8]} 21... exd5 {[%clk 0:00:22.8]} 22. c4 {[%clk 0:00:27.8]} 22...
Rxh5 {[%clk 0:00:22.3]} 23. Rxh5 {[%clk 0:00:25.6]} 23... Nxh5 {[%clk
0:00:23.2]} 24. cxd5 {[%clk 0:00:17.7]} 24... Kd7 {[%clk 0:00:23.1]} 25. Bd4
{[%clk 0:00:17]} 25... a6 {[%clk 0:00:21.5]} 26. Bc5 {[%clk 0:00:14.2]} 26...
Nf4 {[%clk 0:00:18.4]} 27. Rd1 {[%clk 0:00:11.2]} 27... Rh8 {[%clk 0:00:17.6]}
28. Kg1 {[%clk 0:00:10]} 28... f6 {[%clk 0:00:16.5]} 29. d6 {[%clk 0:00:10.5]}
29... Ne6 {[%clk 0:00:15.8]} 30. Re1 {[%clk 0:00:09.9]} 30... Rh4 {[%clk
0:00:14.9]} 31. Kg2 {[%clk 0:00:08.3]} 31... b6 {[%clk 0:00:14.7]} 32. Bxb6
{[%clk 0:00:07.8]} 32... Rxb4 {[%clk 0:00:15.2]} 33. Be3 {[%clk 0:00:07.1]}
33... Rg4+ {[%clk 0:00:14.6]} 34. Kf3 {[%clk 0:00:06.2]} 34... Rh4 {[%clk
0:00:14.9]} 35. Ra1 {[%clk 0:00:05.3]} 35... Kxd6 {[%clk 0:00:14.4]} 36. Rxa6+
{[%clk 0:00:05]} 36... Ke7 {[%clk 0:00:14.6]} 37. Ra7+ {[%clk 0:00:04.4]} 37...
Kd6 {[%clk 0:00:13.4]} 38. Ra6+ {[%clk 0:00:05.3]} 38... Ke7 {[%clk 0:00:11.4]}
39. Ra7+ {[%clk 0:00:05.3]} 39... Ke8 {[%clk 0:00:11.5]} 40. Ra6 {[%clk
0:00:04.7]} 40... Kf7 {[%clk 0:00:11.2]} 41. Ra7+ {[%clk 0:00:04.6]} 41... Kg6
{[%clk 0:00:11.5]} 42. Re7 {[%clk 0:00:04.5]} 42... Nd4+ {[%clk 0:00:10.6]} 43.
Kg2 {[%clk 0:00:02.9]} 43... Rg4+ {[%clk 0:00:09.3]} 44. Kf1 {[%clk 0:00:02.3]}
44... Nf5 {[%clk 0:00:08]} 0-1

[Event "Early-Titled-Tuesday-Blitz-April-02-2024"]
[Site "Chess.com"]
[Date "2024.04.02"]
[Round "8"]
[White "SaqoChess_Twitch"]
[Black "Onischuk_V"]
[Result "0-1"]
[WhiteElo "2692"]
[BlackElo "2828"]
[TimeControl "180+1"]
[EndTime "9:29:01 PDT"]
[Termination "Onischuk_V won by resignation"]

1. d4 {[%clk 0:03:00.9]} 1... d6 {[%clk 0:02:57.5]} 2. c4 {[%clk 0:03:01.5]}
2... e5 {[%clk 0:02:56.9]} 3. e3 {[%clk 0:02:54.4]} 3... Nc6 {[%clk 0:02:52.9]}
4. dxe5 {[%clk 0:02:53.5]} 4... dxe5 {[%clk 0:02:52.5]} 5. Qxd8+ {[%clk
0:02:53.2]} 5... Nxd8 {[%clk 0:02:52.4]} 6. Nc3 {[%clk 0:02:52.8]} 6... c6
{[%clk 0:02:52.1]} 7. Bd2 {[%clk 0:02:52.9]} 7... Be6 {[%clk 0:02:48.7]} 8.
O-O-O {[%clk 0:02:53]} 8... f6 {[%clk 0:02:48.1]} 9. f4 {[%clk 0:02:53]} 9...
Nf7 {[%clk 0:02:48.4]} 10. Nf3 {[%clk 0:02:52.5]} 10... exf4 {[%clk 0:02:38.1]}
11. exf4 {[%clk 0:02:51.5]} 11... O-O-O {[%clk 0:02:38.7]} 12. Be2 {[%clk
0:02:48.6]} 12... Nd6 {[%clk 0:02:27.3]} 13. b3 {[%clk 0:02:48.2]} 13... Bf5
{[%clk 0:02:25.7]} 14. Be3 {[%clk 0:02:45.5]} 14... Rd7 {[%clk 0:02:21]} 15.
Bxa7 {[%clk 0:02:42.3]} 15... Nh6 {[%clk 0:01:34.2]} 16. c5 {[%clk 0:02:31.5]}
16... Ne4 {[%clk 0:01:17.6]} 17. Nxe4 {[%clk 0:02:31.1]} 17... Bxe4 {[%clk
0:01:17]} 18. Rxd7 {[%clk 0:02:31.1]} 18... Kxd7 {[%clk 0:01:17.4]} 19. Rd1+
{[%clk 0:02:31.6]} 19... Ke6 {[%clk 0:01:14.4]} 20. Bc4+ {[%clk 0:02:26.2]}
20... Kf5 {[%clk 0:01:14.6]} 21. Rd8 {[%clk 0:01:53.5]} 21... Bxc5 {[%clk
0:01:01.8]} 22. Nh4+ {[%clk 0:01:34.6]} 22... Kg4 {[%clk 0:01:00.4]} 23. Rxh8
{[%clk 0:01:30]} 23... Bxa7 {[%clk 0:00:59.8]} 24. g3 {[%clk 0:01:29.9]} 24...
Kh3 {[%clk 0:00:49.2]} 25. Be6+ {[%clk 0:01:05.4]} 25... Kxh2 {[%clk 0:00:48.8]}
26. g4 {[%clk 0:01:05.3]} 26... Be3+ {[%clk 0:00:46.1]} 27. Kb2 {[%clk
0:01:04.8]} 27... Bxf4 {[%clk 0:00:46.5]} 28. Nf5 {[%clk 0:01:02.5]} 28... Nxg4
{[%clk 0:00:34.7]} 29. Rxh7+ {[%clk 0:00:59.6]} 29... Nh6 {[%clk 0:00:34.9]} 30.
Rh8 {[%clk 0:00:49.2]} 30... Bxf5 {[%clk 0:00:32.7]} 31. Bxf5 {[%clk 0:00:49.2]}
31... Kg3 {[%clk 0:00:32]} 32. Bg6 {[%clk 0:00:47.8]} 32... f5 {[%clk
0:00:28.4]} 33. a4 {[%clk 0:00:48]} 33... Be5+ {[%clk 0:00:27.8]} 34. Kc2 {[%clk
0:00:45.9]} 34... f4 {[%clk 0:00:27.9]} 35. Re8 {[%clk 0:00:44]} 35... Ng4
{[%clk 0:00:27.7]} 36. Bh5 {[%clk 0:00:35.8]} 36... Bf6 {[%clk 0:00:25.3]} 37.
Bxg4 {[%clk 0:00:22.5]} 37... Kxg4 {[%clk 0:00:25.3]} 38. Kd2 {[%clk 0:00:23.3]}
38... Kf3 {[%clk 0:00:24.8]} 39. Ke1 {[%clk 0:00:21.7]} 39... g5 {[%clk
0:00:24.9]} 40. Rb8 {[%clk 0:00:21.2]} 40... g4 {[%clk 0:00:22.9]} 41. Rxb7
{[%clk 0:00:21.4]} 41... g3 {[%clk 0:00:23.2]} 42. Rd7 {[%clk 0:00:12.1]} 42...
Ke3 {[%clk 0:00:15.4]} 43. Rd6 {[%clk 0:00:06.3]} 43... g2 {[%clk 0:00:12.8]}
44. Re6+ {[%clk 0:00:04.5]} 44... Kf3 {[%clk 0:00:13.1]} 45. Rxf6 {[%clk
0:00:05.1]} 45... g1=Q+ {[%clk 0:00:13.3]} 46. Kd2 {[%clk 0:00:06]} 46... Qd4+
{[%clk 0:00:13.8]} 47. Kc2 {[%clk 0:00:06.5]} 47... Qxf6 {[%clk 0:00:14.4]} 0-1

[Event "Early-Titled-Tuesday-Blitz-April-02-2024"]
[Site "Chess.com"]
[Date "2024.04.02"]
[Round "8"]
[White "Happy1712Drummer"]
[Black "Mariia89"]
[Result "1-0"]
[WhiteElo "2476"]
[BlackElo "2273"]
[TimeControl "180+1"]
[EndTime "9:29:02 PDT"]
[Termination "Happy1712Drummer won on time"]

1. e4 {[%clk 0:03:00.9]} 1... c6 {[%clk 0:02:59.7]} 2. d4 {[%clk 0:03:00.5]}
2... d5 {[%clk 0:03:00.6]} 3. Nc3 {[%clk 0:03:01.2]} 3... dxe4 {[%clk
0:03:00.9]} 4. Nxe4 {[%clk 0:03:02.1]} 4... Nf6 {[%clk 0:03:01.8]} 5. Nxf6+
{[%clk 0:03:02.6]} 5... exf6 {[%clk 0:03:02.7]} 6. Be2 {[%clk 0:03:03.5]} 6...
Be7 {[%clk 0:03:02.4]} 7. Bf3 {[%clk 0:03:03.9]} 7... Bf5 {[%clk 0:03:01.1]} 8.
Ne2 {[%clk 0:03:04.1]} 8... O-O {[%clk 0:03:00.8]} 9. O-O {[%clk 0:03:02.6]}
9... Na6 {[%clk 0:02:59]} 10. c4 {[%clk 0:03:02.4]} 10... Nc7 {[%clk 0:02:59.1]}
11. Be3 {[%clk 0:03:00.7]} 11... Qd7 {[%clk 0:02:58.7]} 12. Nc3 {[%clk
0:02:50.3]} 12... Rfe8 {[%clk 0:02:51]} 13. Qb3 {[%clk 0:02:47.1]} 13... Ne6
{[%clk 0:02:44.5]} 14. Rfd1 {[%clk 0:02:42.7]} 14... Ng5 {[%clk 0:02:38.6]} 15.
Be2 {[%clk 0:02:30]} 15... Ne4 {[%clk 0:02:23.8]} 16. d5 {[%clk 0:02:23.2]}
16... Nxc3 {[%clk 0:02:15.2]} 17. Qxc3 {[%clk 0:02:22]} 17... c5 {[%clk
0:02:11.4]} 18. a3 {[%clk 0:01:57.1]} 18... Bd6 {[%clk 0:01:53.5]} 19. Bf3
{[%clk 0:01:55.6]} 19... Rac8 {[%clk 0:01:42]} 20. Rac1 {[%clk 0:01:53.5]} 20...
Bg4 {[%clk 0:01:27.5]} 21. Bxg4 {[%clk 0:01:42.8]} 21... Qxg4 {[%clk 0:01:27.4]}
22. b4 {[%clk 0:01:36.6]} 22... b6 {[%clk 0:01:02.1]} 23. bxc5 {[%clk
0:01:23.8]} 23... bxc5 {[%clk 0:01:02.2]} 24. Rb1 {[%clk 0:01:21.2]} 24... Re4
{[%clk 0:00:59.4]} 25. f3 {[%clk 0:00:58]} 25... Rxc4 {[%clk 0:00:58.9]} 26. Qd3
{[%clk 0:00:19.5]} 26... Qh4 {[%clk 0:00:51.7]} 27. h3 {[%clk 0:00:19.9]} 27...
Ra4 {[%clk 0:00:39.3]} 28. Bf2 {[%clk 0:00:20.3]} 28... Qg5 {[%clk 0:00:37.1]}
29. Re1 {[%clk 0:00:19.4]} 29... c4 {[%clk 0:00:32.5]} 30. Qe4 {[%clk
0:00:13.2]} 30... h5 {[%clk 0:00:12.7]} 31. Rb7 {[%clk 0:00:10]} 31... c3 {[%clk
0:00:06.8]} 32. Qxa4 {[%clk 0:00:07.1]} 32... c2 {[%clk 0:00:07.1]} 33. Be3
{[%clk 0:00:06.3]} 33... Qg3 {[%clk 0:00:05.9]} 34. Rc1 {[%clk 0:00:05.4]} 34...
Qh2+ {[%clk 0:00:05.8]} 35. Kf1 {[%clk 0:00:05.9]} 35... Qh1+ {[%clk 0:00:04.7]}
36. Kf2 {[%clk 0:00:06.4]} 36... Qh2 {[%clk 0:00:03.5]} 37. Qd7 {[%clk
0:00:05.1]} 37... Bg3+ {[%clk 0:00:02.4]} 38. Kf1 {[%clk 0:00:05.2]} 38... Qh1+
{[%clk 0:00:01.8]} 39. Bg1 {[%clk 0:00:05.9]} 1-0

[Event "Early-Titled-Tuesday-Blitz-April-02-2024"]
[Site "Chess.com"]
[Date "2024.04.02"]
[Round "8"]
[White "Louis-Paulsen-Fan"]
[Black "Aureliano-Buendia"]
[Result "1-0"]
[WhiteElo "2299"]
[BlackElo "2463"]
[TimeControl "180+1"]
[EndTime "9:29:04 PDT"]
[Termination "Louis-Paulsen-Fan won by resignation"]

1. d4 {[%clk 0:03:00.9]} 1... d6 {[%clk 0:02:59]} 2. Nf3 {[%clk 0:03:00.8]} 2...
Nf6 {[%clk 0:02:59.4]} 3. c4 {[%clk 0:03:00.9]} 3... Nbd7 {[%clk 0:02:57.9]} 4.
Bf4 {[%clk 0:02:59.7]} 4... g6 {[%clk 0:02:54.7]} 5. h3 {[%clk 0:02:59.3]} 5...
Bg7 {[%clk 0:02:55.1]} 6. Nc3 {[%clk 0:02:59.5]} 6... O-O {[%clk 0:02:55.4]} 7.
e3 {[%clk 0:02:59.9]} 7... c6 {[%clk 0:02:45.3]} 8. Be2 {[%clk 0:02:58.6]} 8...
Qe8 {[%clk 0:02:45.5]} 9. O-O {[%clk 0:02:55.6]} 9... e5 {[%clk 0:02:45.6]} 10.
Bh2 {[%clk 0:02:55.7]} 10... Qe7 {[%clk 0:02:44]} 11. c5 {[%clk 0:02:38.1]}
11... dxc5 {[%clk 0:02:35.5]} 12. Nxe5 {[%clk 0:02:38.2]} 12... cxd4 {[%clk
0:02:33.3]} 13. exd4 {[%clk 0:02:38.6]} 13... Nb6 {[%clk 0:02:30.8]} 14. Bf3
{[%clk 0:02:27]} 14... Be6 {[%clk 0:02:30.1]} 15. Re1 {[%clk 0:02:25.9]} 15...
Qb4 {[%clk 0:02:19]} 16. Qd2 {[%clk 0:02:11.2]} 16... Nc4 {[%clk 0:02:18]} 17.
Nxc4 {[%clk 0:02:09.9]} 17... Bxc4 {[%clk 0:02:17.6]} 18. Be5 {[%clk 0:02:03]}
18... Be6 {[%clk 0:02:13.2]} 19. Rad1 {[%clk 0:01:55.1]} 19... Nd7 {[%clk
0:02:02.3]} 20. Bxg7 {[%clk 0:01:52.5]} 20... Kxg7 {[%clk 0:02:01.2]} 21. d5
{[%clk 0:01:44.6]} 21... cxd5 {[%clk 0:02:00.4]} 22. Bxd5 {[%clk 0:01:41]} 22...
Bxd5 {[%clk 0:01:59.2]} 23. Qxd5 {[%clk 0:01:22.8]} 23... Nf6 {[%clk 0:01:57.7]}
24. Qd4 {[%clk 0:01:19.3]} 24... Qxb2 {[%clk 0:01:52.3]} 25. Re7 {[%clk
0:01:15.5]} 25... Rad8 {[%clk 0:01:47.8]} 26. Qe3 {[%clk 0:00:40.1]} 26... Rxd1+
{[%clk 0:01:40.5]} 27. Nxd1 {[%clk 0:00:41]} 27... Qxa2 {[%clk 0:01:25.9]} 28.
Nc3 {[%clk 0:00:34.8]} 28... Qa1+ {[%clk 0:01:22.5]} 29. Kh2 {[%clk 0:00:35.2]}
29... b6 {[%clk 0:01:18.4]} 30. g4 {[%clk 0:00:31.5]} 30... h6 {[%clk
0:01:15.2]} 31. Qe5 {[%clk 0:00:20]} 31... Qb2 {[%clk 0:01:09]} 32. Kg2 {[%clk
0:00:17.2]} 32... Qd2 {[%clk 0:01:04.8]} 33. h4 {[%clk 0:00:16.6]} 33... Rc8
{[%clk 0:00:58.1]} 34. g5 {[%clk 0:00:14.5]} 34... hxg5 {[%clk 0:00:56.7]} 35.
hxg5 {[%clk 0:00:14.3]} 35... Qxc3 {[%clk 0:00:54.5]} 36. gxf6+ {[%clk
0:00:14.6]} 36... Kg8 {[%clk 0:00:53.7]} 37. Re8+ {[%clk 0:00:13.9]} 37... Rxe8
{[%clk 0:00:46.2]} 38. Qxc3 {[%clk 0:00:12]} 38... Re6 {[%clk 0:00:35.2]} 39.
Kg3 {[%clk 0:00:12.4]} 39... a5 {[%clk 0:00:30.5]} 40. Kg4 {[%clk 0:00:12.7]}
40... Rd6 {[%clk 0:00:28.7]} 41. Kg5 {[%clk 0:00:11.8]} 41... Rd5+ {[%clk
0:00:28.3]} 42. Kg4 {[%clk 0:00:12.3]} 42... Rf5 {[%clk 0:00:26.6]} 43. Qc8+
{[%clk 0:00:10.9]} 43... Kh7 {[%clk 0:00:26.1]} 44. Qd8 {[%clk 0:00:11.3]} 44...
Re5 {[%clk 0:00:19.3]} 45. Qf8 {[%clk 0:00:10.5]} 45... Re4+ {[%clk 0:00:11.1]}
46. Kf3 {[%clk 0:00:10.9]} 1-0

[Event "Early-Titled-Tuesday-Blitz-April-02-2024"]
[Site "Chess.com"]
[Date "2024.04.02"]
[Round "8"]
[White "Felix-Rose"]
[Black "bazar-wokzal"]
[Result "0-1"]
[WhiteElo "2334"]
[BlackElo "2561"]
[TimeControl "180+1"]
[EndTime "9:29:05 PDT"]
[Termination "bazar-wokzal won by checkmate"]

1. e4 {[%clk 0:03:00]} 1... Nc6 {[%clk 0:02:59.7]} 2. Nf3 {[%clk 0:03:00.4]}
2... d5 {[%clk 0:02:59.2]} 3. exd5 {[%clk 0:03:00.2]} 3... Qxd5 {[%clk
0:02:59.3]} 4. Nc3 {[%clk 0:03:00.6]} 4... Qa5 {[%clk 0:02:58.6]} 5. d4 {[%clk
0:02:59.1]} 5... Bg4 {[%clk 0:02:58.1]} 6. Bb5 {[%clk 0:02:59.1]} 6... O-O-O
{[%clk 0:02:57.5]} 7. Bxc6 {[%clk 0:02:57.8]} 7... bxc6 {[%clk 0:02:57.4]} 8. h3
{[%clk 0:02:58.4]} 8... Qh5 {[%clk 0:02:56.6]} 9. Be3 {[%clk 0:02:49.1]} 9... e5
{[%clk 0:02:50.7]} 10. Qd3 {[%clk 0:02:04.5]} 10... Bxf3 {[%clk 0:02:48.7]} 11.
Qa6+ {[%clk 0:02:03.1]} 11... Kd7 {[%clk 0:02:48.1]} 12. gxf3 {[%clk 0:01:55.2]}
12... Qxf3 {[%clk 0:02:42.4]} 13. Rg1 {[%clk 0:01:55.4]} 13... exd4 {[%clk
0:02:28.9]} 14. Bxd4 {[%clk 0:01:55.7]} 14... Re8+ {[%clk 0:02:29.1]} 15. Be3
{[%clk 0:01:55.6]} 15... Bd6 {[%clk 0:02:17]} 16. Qxa7 {[%clk 0:01:42.4]} 16...
Nf6 {[%clk 0:02:11.4]} 17. Qd4 {[%clk 0:01:35.3]} 17... Rxe3+ {[%clk 0:01:57.1]}
18. fxe3 {[%clk 0:01:29.3]} 18... Re8 {[%clk 0:01:56.7]} 19. Kd2 {[%clk
0:01:08.3]} 19... Ne4+ {[%clk 0:00:57.2]} 20. Nxe4 {[%clk 0:00:55.3]} 20... Rxe4
{[%clk 0:00:56.6]} 21. Qd3 {[%clk 0:00:50.8]} 21... Rxe3 {[%clk 0:00:55.2]} 22.
Qf1 {[%clk 0:00:33.7]} 22... Qe4 {[%clk 0:00:41.2]} 23. Re1 {[%clk 0:00:27.9]}
23... Bf4 {[%clk 0:00:38]} 24. Qxf4 {[%clk 0:00:18.2]} 24... Qxf4 {[%clk
0:00:28.8]} 25. Rxe3 {[%clk 0:00:18.1]} 25... g6 {[%clk 0:00:28.4]} 26. Re1
{[%clk 0:00:17.3]} 26... f5 {[%clk 0:00:27]} 27. Kd1 {[%clk 0:00:16.3]} 27...
Kc8 {[%clk 0:00:24.5]} 28. b3 {[%clk 0:00:14]} 28... Kb7 {[%clk 0:00:23.7]} 29.
Kc1 {[%clk 0:00:13.7]} 29... g5 {[%clk 0:00:23]} 30. Kb2 {[%clk 0:00:14.3]}
30... g4 {[%clk 0:00:23.2]} 31. hxg4 {[%clk 0:00:14.7]} 31... fxg4 {[%clk
0:00:23.7]} 32. Re7 {[%clk 0:00:15.2]} 32... h5 {[%clk 0:00:23.1]} 33. a4 {[%clk
0:00:10.3]} 33... h4 {[%clk 0:00:22.9]} 34. R7e4 {[%clk 0:00:10.7]} 34... Qf6+
{[%clk 0:00:22.5]} 35. Ka2 {[%clk 0:00:11.5]} 35... g3 {[%clk 0:00:19]} 36. Rg4
{[%clk 0:00:12]} 36... Qf2 {[%clk 0:00:17.4]} 37. Ree4 {[%clk 0:00:07.6]} 37...
Qxc2+ {[%clk 0:00:16.9]} 38. Ka3 {[%clk 0:00:08.3]} 38... Qc1+ {[%clk
0:00:16.9]} 39. Kb4 {[%clk 0:00:08.3]} 39... Qd2+ {[%clk 0:00:15.8]} 40. Ka3
{[%clk 0:00:08.7]} 40... g2 {[%clk 0:00:15.8]} 41. Rxh4 {[%clk 0:00:08.3]} 41...
g1=Q {[%clk 0:00:14.5]} 42. Rb4+ {[%clk 0:00:09.2]} 42... Ka6 {[%clk 0:00:13.7]}
43. Rbc4 {[%clk 0:00:08.5]} 43... Qa1# {[%clk 0:00:13.3]} 0-1

[Event "Early-Titled-Tuesday-Blitz-April-02-2024"]
[Site "Chess.com"]
[Date "2024.04.02"]
[Round "8"]
[White "shirovin"]
[Black "tarno17"]
[Result "0-1"]
[WhiteElo "2037"]
[BlackElo "2146"]
[TimeControl "180+1"]
[EndTime "9:29:05 PDT"]
[Termination "tarno17 won on time"]

1. e4 {[%clk 0:03:00.9]} 1... c5 {[%clk 0:03:00.2]} 2. Nf3 {[%clk 0:03:00]} 2...
e6 {[%clk 0:03:00.9]} 3. d4 {[%clk 0:02:59.3]} 3... cxd4 {[%clk 0:03:00]} 4.
Nxd4 {[%clk 0:02:59.8]} 4... a6 {[%clk 0:02:59.6]} 5. g3 {[%clk 0:02:57.6]} 5...
Qc7 {[%clk 0:02:55.7]} 6. Bg2 {[%clk 0:02:56.5]} 6... d6 {[%clk 0:02:55.5]} 7.
O-O {[%clk 0:02:55.1]} 7... Nf6 {[%clk 0:02:55.6]} 8. Nc3 {[%clk 0:02:54.7]}
8... Be7 {[%clk 0:02:55.8]} 9. Re1 {[%clk 0:02:54.9]} 9... O-O {[%clk
0:02:54.7]} 10. Be3 {[%clk 0:02:38.1]} 10... Nc6 {[%clk 0:02:45.8]} 11. f4
{[%clk 0:02:36.9]} 11... Rd8 {[%clk 0:02:40.9]} 12. h3 {[%clk 0:02:24.9]} 12...
Bf8 {[%clk 0:02:29.6]} 13. Nxc6 {[%clk 0:02:15.9]} 13... bxc6 {[%clk 0:02:29]}
14. g4 {[%clk 0:02:16.2]} 14... Bb7 {[%clk 0:02:22.2]} 15. g5 {[%clk 0:02:14.7]}
15... Ne8 {[%clk 0:02:21]} 16. f5 {[%clk 0:02:05]} 16... e5 {[%clk 0:02:00.9]}
17. Qg4 {[%clk 0:01:59.9]} 17... f6 {[%clk 0:01:54.5]} 18. Kh1 {[%clk
0:01:47.9]} 18... d5 {[%clk 0:01:50.3]} 19. Bf2 {[%clk 0:01:33.2]} 19... Be7
{[%clk 0:01:27.1]} 20. h4 {[%clk 0:01:27.5]} 20... Rd7 {[%clk 0:01:17.1]} 21.
Bf3 {[%clk 0:01:22.7]} 21... Rad8 {[%clk 0:01:16.9]} 22. Rg1 {[%clk 0:01:20.6]}
22... dxe4 {[%clk 0:01:14.8]} 23. Nxe4 {[%clk 0:01:15.5]} 23... c5 {[%clk
0:01:05.7]} 24. gxf6 {[%clk 0:00:49.2]} 24... Bxf6 {[%clk 0:01:04.1]} 25. Nxc5
{[%clk 0:00:42.1]} 25... Bxf3+ {[%clk 0:00:57.9]} 26. Qxf3 {[%clk 0:00:41.5]}
26... Rd2 {[%clk 0:00:52.3]} 27. Qg3 {[%clk 0:00:21.3]} 27... Qc6+ {[%clk
0:00:43.7]} 28. Rg2 {[%clk 0:00:18.3]} 28... Rxc2 {[%clk 0:00:31.3]} 29. Qb3+
{[%clk 0:00:16.7]} 29... Rd5 {[%clk 0:00:20.2]} 30. Qxc2 {[%clk 0:00:15.2]}
30... h6 {[%clk 0:00:14.4]} 31. Rc1 {[%clk 0:00:14]} 31... Qb5 {[%clk
0:00:13.1]} 32. Ne4 {[%clk 0:00:12.5]} 32... Qb4 {[%clk 0:00:06.1]} 33. Qc8
{[%clk 0:00:09.6]} 33... Rd8 {[%clk 0:00:04.7]} 34. Qc4+ {[%clk 0:00:08.6]}
34... Qxc4 {[%clk 0:00:04.4]} 35. Rxc4 {[%clk 0:00:09]} 35... Rd1+ {[%clk
0:00:04.8]} 36. Kh2 {[%clk 0:00:08.7]} 36... Kh7 {[%clk 0:00:04.4]} 37. Bg3
{[%clk 0:00:08.3]} 37... Rb1 {[%clk 0:00:02.8]} 38. b3 {[%clk 0:00:07.6]} 38...
h5 {[%clk 0:00:03.1]} 39. Ra4 {[%clk 0:00:07]} 39... a5 {[%clk 0:00:03.1]} 40.
Rxa5 {[%clk 0:00:06.8]} 40... Rd1 {[%clk 0:00:03.3]} 41. Nxf6+ {[%clk
0:00:06.2]} 41... Nxf6 {[%clk 0:00:03.4]} 42. Bxe5 {[%clk 0:00:04.5]} 42... Ng4+
{[%clk 0:00:03.6]} 43. Kg3 {[%clk 0:00:04.4]} 43... Rd3+ {[%clk 0:00:04.1]} 44.
Kf4 {[%clk 0:00:04.1]} 44... Rd1 {[%clk 0:00:03.3]} 0-1